fUST/lending_fUST_20260114
["ID","MTS","AMOUNT","RATE_DAILY","PERIOD"]
[401899155,1768398652153,-825.65138265,0.00022359,2]
[401899157,1768398652163,-39666.91,0.000224,2]
[401899159,1768398652172,-200.0,0.00022466,2]
[401899161,1768398652182,-300.0,0.00022466,2]
[401899163,1768398652193,-2364.52541442,0.00022466,2]
[401899165,1768398652202,-232.92155892,0.00022481,94]
[401899166,1768398652212,-1000.0,0.00022714,10]
[401899168,1768398652222,-1000.0,0.00022714,10]
[401899170,1768398652231,-1000.0,0.00022714,10]
[401899171,1768398652241,-1140.2,0.00022817,2]
[401899173,1768398652250,-3082.903426,0.00022863,30]
[401899175,1768398652259,-441.213718,0.00022863,30]
[401899177,1768398652269,-11434.83681079,0.00022882,2]
[401899179,1768398652279,-294.142479,0.00022885,30]
[401899181,1768398652288,-2000.0,0.00022904,7]
[401899182,1768398652298,-180.65504926,0.00022972,120]
[401899184,1768398652309,-220.28034674,0.00022972,120]
[401899186,1768398652319,-232.92155886,0.00022972,120]
[401899188,1768398652328,-1400.0,0.00023014,2]
[401899190,1768398652338,-250.0,0.00023014,2]
[401899192,1768398652348,-450.0,0.00023014,2]
[401899194,1768398652357,-232.92155892,0.00023072,102]
[401899195,1768398652367,-500.0,0.000231,7]
[401899197,1768398652376,-182.95072115,0.0002315,2]
[401899199,1768398652386,-2000.0,0.00023158,2]
[401899201,1768398652396,-800.0,0.00023162,2]
[401899203,1768398652406,-2469.16,0.000232,7]
[401899205,1768398652416,-1000.0,0.00023208,2]
[401899207,1768398652425,-800.0,0.00023235,2]
[401899208,1768398652434,-791.34915639,0.00023238,2]
[401899210,1768398652443,-800.0,0.00023242,2]
[401899212,1768398652453,-1381.92097927,0.00023256,2]
[401899214,1768398652463,-800.0,0.00023296,2]
[401899216,1768398652472,-305.62,0.000233,7]
[401899218,1768398652481,-303.2,0.000233,7]
[401899219,1768398652491,-229.47,0.00023301,2]
[401899221,1768398652500,-500.0,0.00023306,2]
[401899222,1768398652509,-2000.0,0.00023313,2]
[401899224,1768398652519,-500.0,0.00023322,2]
[401899226,1768398652528,-2000.0,0.00023332,2]
[401899228,1768398652537,-500.0,0.00023339,2]
[401899229,1768398652546,-1000.0,0.00023344,2]
[401899231,1768398652557,-1089.56424793,0.00023345,19]
[401899233,1768398652566,-1000.0,0.00023345,2]
[401899234,1768398652575,-2000.0,0.00023351,2]
[401899236,1768398652585,-2000.0,0.0002336,2]
[401899238,1768398652594,-1000.0,0.00023364,2]
[401899240,1768398652603,-2000.0,0.00023365,2]
[401899242,1768398652612,-2000.0,0.00023376,2]
[401899243,1768398652621,-1000.0,0.00023376,2]
[401899245,1768398652630,-800.0,0.00023381,2]
[401899247,1768398652640,-2000.0,0.00023413,2]
[401899249,1768398652649,-2000.0,0.00023426,2]
[401899251,1768398652658,-151.0,0.00023426,2]
[401899252,1768398652667,-151.0,0.00023426,2]
[401899254,1768398652676,-151.0,0.00023426,2]
[401899256,1768398652685,-2000.0,0.00023439,2]
[401899258,1768398652694,-800.0,0.00023444,2]
[401899259,1768398652704,-800.0,0.00023466,2]
[401899261,1768398652714,-800.0,0.00023486,2]
[401899263,1768398652723,-1000.0,0.00023497,2]
[401899265,1768398652733,-901.46550708,0.00023505,2]
[401899267,1768398652742,-1000.0,0.00023509,2]
[401899269,1768398652751,-2000.0,0.00023536,2]
[401899271,1768398652761,-500.0,0.00023538,2]
[401899272,1768398652770,-1000.0,0.00023549,2]
[401899274,1768398652779,-210.92385342,0.00023562,2]
[401899276,1768398652789,-600.0,0.00023562,2]
[401899278,1768398652799,-2000.0,0.00023574,2]
[401899280,1768398652809,-241.541461,0.00023574,2]
[401899282,1768398652818,-216.013567,0.00023574,2]
[401899284,1768398652827,-151.0,0.00023574,2]
[401899285,1768398652836,-151.3487,0.00023574,2]
[401899287,1768398652845,-216.013567,0.00023574,2]
[401899289,1768398652856,-151.3487,0.00023574,2]
[401899291,1768398652865,-216.013567,0.00023574,2]
[401899293,1768398652875,-151.3487,0.00023574,2]
[401899294,1768398652884,-216.013567,0.00023574,2]
[401899296,1768398652893,-151.3487,0.00023574,2]
[401899298,1768398652902,-151.0,0.00023574,2]
[401899300,1768398652911,-154.979883,0.00023574,2]
[401899302,1768398652920,-151.0,0.00023574,2]
[401899304,1768398652930,-244.488138,0.00023574,2]
[401899305,1768398652939,-244.488138,0.00023574,2]
[401899307,1768398652952,-244.488138,0.00023574,2]
[401899309,1768398652961,-244.488138,0.00023574,2]
[401899311,1768398652970,-151.0,0.00023574,2]
[401899312,1768398652979,-151.0,0.00023574,2]
[401899314,1768398652988,-151.0,0.00023574,2]
[401899316,1768398652998,-151.0,0.00023574,2]
[401899318,1768398653007,-151.0,0.00023574,2]
[401899320,1768398653017,-151.0,0.00023574,2]
[401899321,1768398653026,-151.0,0.00023574,2]
[401899323,1768398653035,-1000.0,0.00023598,2]
[401899325,1768398653044,-800.0,0.00023599,2]
[401899327,1768398653057,-500.0,0.00023604,2]
[401899329,1768398653066,-2000.0,0.00023634,2]
[401899331,1768398653075,-2000.0,0.00023677,2]
[401899332,1768398653086,-2000.0,0.0002369,2]
[401899334,1768398653095,-5888.0,0.00023738,2]
[401899336,1768398653104,-1000.0,0.0002375,2]
[401899338,1768398653114,-2000.0,0.00023758,2]
[401899340,1768398653123,-800.0,0.00023766,2]
[401899342,1768398653132,-500.0,0.00023771,2]
[401899343,1768398653142,-5888.0,0.00023776,2]
[401899345,1768398653151,-1281.0,0.00023788,2]
[401899347,1768398653162,-151.0,0.00023797,2]
[401899349,1768398653171,-151.0,0.00023797,2]
[401899350,1768398653180,-500.0,0.00023823,2]
[401899352,1768398653189,-1000.0,0.00023828,2]
[401899354,1768398653198,-1000.0,0.00023847,2]
[401899356,1768398653208,-5888.0,0.00023858,2]
[401899357,1768398653218,-800.0,0.00023871,2]
[401899359,1768398653227,-800.0,0.00023875,2]
[401899361,1768398653237,-1000.0,0.0002388,2]
[401899363,1768398653246,-1281.0,0.00023893,2]
[401899365,1768398653255,-2000.0,0.00023896,2]
[401899366,1768398653264,-1000.0,0.00023899,2]
[401899368,1768398653274,-1281.0,0.00023899,7]
[401899370,1768398653283,-167.77,0.000239,7]
[401899372,1768398653293,-39666.91,0.000239,2]
[401899374,1768398653303,-2000.0,0.00023901,2]
[401899376,1768398653312,-2000.0,0.0002391,2]
[401899378,1768398653321,-500.0,0.00023921,2]
[401899380,1768398653330,-5888.0,0.00023941,2]
[401899382,1768398653339,-500.0,0.00023946,2]
[401899383,1768398653348,-800.0,0.00023955,2]
[401899385,1768398653357,-1000.0,0.00023974,2]
[401899387,1768398653368,-5888.0,0.00023976,2]
[401899389,1768398653377,-522.88356834,0.00024004,2]
[401899391,1768398653386,-2000.0,0.00024015,2]
[401899393,1768398653395,-5888.0,0.00024015,2]
[401899395,1768398653404,-800.0,0.00024024,2]
[401899397,1768398653413,-1000.0,0.00024054,2]
[401899399,1768398653421,-2000.0,0.00024059,2]
[401899400,1768398653430,-1000.0,0.00024066,2]
[401899402,1768398653440,-800.0,0.00024079,2]
[401899404,1768398653449,-1000.0,0.00024079,2]
[401899406,1768398653458,-2469.16,0.000241,7]
[401899408,1768398653467,-2000.0,0.00024105,2]
[401899409,1768398653476,-1601.4141805,0.0002411,2]
[401899411,1768398653485,-750.0,0.0002411,2]
[401899413,1768398653494,-500.0,0.00024136,2]
[401899415,1768398653504,-2000.0,0.00024163,2]
[401899417,1768398653513,-800.0,0.00024182,2]
[401899419,1768398653522,-1140.2,0.00024199,2]
[401899421,1768398653531,-800.0,0.00024208,2]
[401899423,1768398653541,-2000.0,0.00024219,7]
[401899425,1768398653550,-1281.0,0.00024226,2]
[401899426,1768398653559,-945.0,0.00024233,2]
[401899428,1768398653568,-1082.98429516,0.00024233,2]
[401899430,1768398653578,-1000.0,0.00024256,2]
[401899432,1768398653587,-500.0,0.00024286,2]
[401899434,1768398653596,-1000.0,0.00024286,2]
[401899436,1768398653607,-800.0,0.0002429,2]
[401899438,1768398653616,-800.0,0.00024293,2]
[401899440,1768398653625,-1000.0,0.00024295,2]
[401899442,1768398653634,-293.85068442,0.00024298,2]
[401899443,1768398653643,-1281.0,0.00024302,7]
[401899445,1768398653653,-190.0,0.00024321,2]
[401899447,1768398653662,-330.0,0.00024337,2]
[401899449,1768398653671,-1089.56424793,0.00024356,20]
[401899451,1768398653680,-1000.0,0.00024358,2]
[401899453,1768398653690,-1000.0,0.0002439,2]
[401899455,1768398653699,-1041.66666667,0.000244,7]
[401899456,1768398653709,-800.0,0.00024433,2]
[401899458,1768398653718,-2000.0,0.00024443,2]
[401899460,1768398653727,-1281.0,0.00024478,7]
[401899462,1768398653736,-500.0,0.00024543,2]
[401899464,1768398653746,-500.0,0.00024567,2]
[401899466,1768398653755,-500.0,0.0002461,2]
[401899467,1768398653764,-499.3,0.00024619,2]
[401899469,1768398653774,-5888.0,0.00024647,2]
[401899471,1768398653783,-800.0,0.00024651,2]
[401899473,1768398653796,-336.26879672,0.00024658,14]
[401899475,1768398653807,-900.0,0.00024658,2]
[401899477,1768398653817,-200.0,0.00024658,2]
[401899479,1768398653827,-2000.0,0.00024683,2]
[401899481,1768398653837,-1000.0,0.00024718,2]
[401899483,1768398653847,-800.0,0.0002476,2]
[401899485,1768398653856,-11434.83681079,0.00024761,2]
[401899486,1768398653866,-800.0,0.00024768,2]
[401899488,1768398653875,-1000.0,0.00024781,2]
[401899490,1768398653885,-1000.0,0.00024785,2]
[401899492,1768398653894,-1296.0967193,0.00024804,2]
[401899494,1768398653904,-500.0,0.00024811,2]
[401899496,1768398653914,-1000.0,0.00024861,2]
[401899498,1768398653923,-1281.0,0.0002487,2]
[401899500,1768398653932,-2000.0,0.00024886,2]
[401899502,1768398653944,-500.0,0.00024895,2]
[401899503,1768398653955,-305.62,0.000249,7]
[401899505,1768398653965,-303.2,0.000249,7]
[401899507,1768398653979,-165.615125,0.000249,7]
[401899509,1768398653989,-151.0,0.000249,7]
[401899511,1768398654000,-151.0,0.000249,7]
[401899513,1768398654010,-151.0,0.000249,7]
[401899515,1768398654021,-151.0,0.000249,7]
[401899517,1768398654031,-176.527375,0.000249,7]
[401899518,1768398654040,-151.0,0.000249,7]
[401899520,1768398654051,-151.0,0.000249,7]
[401899522,1768398654061,-151.0,0.000249,7]
[401899524,1768398654071,-151.0,0.000249,7]
[401899526,1768398654081,-151.0,0.000249,7]
[401899528,1768398654091,-151.0,0.000249,7]
[401899530,1768398654101,-166.519335,0.000249,7]
[401899531,1768398654111,-151.0,0.000249,7]
[401899533,1768398654121,-151.0,0.000249,7]
[401899535,1768398654132,-155.262134,0.000249,7]
[401899537,1768398654142,-151.0,0.000249,7]
[401899539,1768398654152,-151.0,0.000249,7]
[401899541,1768398654161,-151.0,0.000249,7]
[401899543,1768398654171,-151.0,0.000249,7]
[401899545,1768398654180,-561.150045,0.000249,7]
[401899547,1768398654190,-561.150045,0.000249,7]
[401899549,1768398654199,-561.150045,0.000249,7]
[401899550,1768398654209,-561.150045,0.000249,7]
[401899552,1768398654219,-151.0,0.000249,7]
[401899554,1768398654229,-151.0,0.000249,7]
[401899556,1768398654239,-151.0,0.000249,7]
[401899558,1768398654249,-151.0,0.000249,7]
[401899560,1768398654259,-151.0,0.000249,7]
[401899562,1768398654269,-151.0,0.000249,7]
[401899564,1768398654278,-151.0,0.000249,7]
[401899566,1768398654288,-151.0,0.000249,7]
[401899568,1768398654298,-151.0,0.000249,7]
[401899569,1768398654307,-151.0,0.000249,7]
[401899571,1768398654317,-151.0,0.000249,7]
[401899573,1768398654326,-222.949825,0.000249,7]
[401899575,1768398654336,-369.592925,0.000249,7]
[401899577,1768398654345,-151.0,0.000249,7]
[401899579,1768398654354,-369.592925,0.000249,7]
[401899581,1768398654363,-151.0,0.000249,7]
[401899583,1768398654373,-151.0,0.000249,7]
[401899585,1768398654382,-369.592925,0.000249,7]
[401899587,1768398654391,-369.592925,0.000249,7]
[401899588,1768398654400,-490.347103,0.000249,7]
[401899590,1768398654410,-490.347103,0.000249,7]
[401899592,1768398654419,-490.347103,0.000249,7]
[401899594,1768398654428,-490.347103,0.000249,7]
[401899596,1768398654437,-151.0,0.000249,7]
[401899598,1768398654447,-195.156412,0.000249,7]
[401899600,1768398654457,-195.156412,0.000249,7]
[401899602,1768398654466,-195.156412,0.000249,7]
[401899603,1768398654475,-195.156412,0.000249,7]
[401899605,1768398654484,-196.38849,0.000249,7]
[401899607,1768398654492,-196.38849,0.000249,7]
[401899609,1768398654502,-196.38849,0.000249,7]
[401899611,1768398654511,-196.38849,0.000249,7]
[401899613,1768398654521,-202.037626,0.000249,7]
[401899615,1768398654530,-202.037626,0.000249,7]
[401899617,1768398654539,-202.037626,0.000249,7]
[401899619,1768398654548,-202.037626,0.000249,7]
[401899621,1768398654558,-633.419635,0.000249,7]
[401899623,1768398654567,-633.419635,0.000249,7]
[401899624,1768398654576,-151.0,0.000249,7]
[401899626,1768398654586,-633.419635,0.000249,7]
[401899628,1768398654595,-633.419635,0.000249,7]
[401899630,1768398654604,-424.867584,0.000249,7]
[401899632,1768398654614,-424.867584,0.000249,7]
[401899634,1768398654623,-424.867584,0.000249,7]
[401899636,1768398654632,-424.867584,0.000249,7]
[401899638,1768398654642,-151.0,0.000249,7]
[401899640,1768398654651,-151.0,0.000249,7]
[401899641,1768398654660,-151.0,0.000249,7]
[401899643,1768398654669,-158.985841,0.000249,7]
[401899645,1768398654678,-151.0,0.000249,7]
[401899647,1768398654687,-151.0,0.000249,7]
[401899649,1768398654696,-151.0,0.000249,7]
[401899651,1768398654706,-255.526264,0.000249,7]
[401899653,1768398654715,-151.0,0.000249,7]
[401899655,1768398654724,-151.0,0.000249,7]
[401899657,1768398654733,-189.222608,0.000249,7]
[401899659,1768398654743,-879.438014,0.000249,7]
[401899661,1768398654752,-879.438014,0.000249,7]
[401899663,1768398654761,-879.438014,0.000249,7]
[401899664,1768398654771,-879.438014,0.000249,7]
[401899666,1768398654780,-653058.728757,0.000249,2]
[401899668,1768398654789,-151.0,0.000249,7]
[401899670,1768398654798,-151.0,0.000249,7]
[401899672,1768398654808,-216.013567,0.000249,7]
[401899674,1768398654818,-171.590908,0.000249,7]
[401899676,1768398654827,-151.3487,0.000249,7]
[401899678,1768398654837,-216.013567,0.000249,7]
[401899680,1768398654846,-151.3487,0.000249,7]
[401899682,1768398654855,-216.013567,0.000249,7]
[401899684,1768398654865,-151.3487,0.000249,7]
[401899686,1768398654874,-216.013567,0.000249,7]
[401899688,1768398654884,-151.3487,0.000249,7]
[401899689,1768398654893,-151.0,0.000249,7]
[401899691,1768398654903,-151.0,0.000249,7]
[401899693,1768398654912,-244.488138,0.000249,7]
[401899695,1768398654921,-244.488138,0.000249,7]
[401899697,1768398654930,-244.488138,0.000249,7]
[401899699,1768398654940,-244.488138,0.000249,7]
[401899701,1768398654953,-164.655046,0.000249,7]
[401899703,1768398654963,-151.0,0.000249,7]
[401899705,1768398654972,-151.0,0.000249,7]
[401899707,1768398654982,-177.23153386,0.000249,7]
[401899709,1768398654992,-151.0,0.000249,7]
[401899711,1768398655001,-151.0,0.000249,7]
[401899713,1768398655011,-151.0,0.000249,7]
[401899715,1768398655022,-155.398666,0.000249,7]
[401899717,1768398655031,-151.0,0.000249,2]
[401899718,1768398655040,-1281.0,0.00024904,2]
[401899720,1768398655050,-591.12357233,0.0002494,2]
[401899722,1768398655058,-1594.41498494,0.00024952,2]
[401899724,1768398655068,-1281.0,0.00024981,2]
[401899726,1768398655077,-1000.0,0.00024985,10]
[401899728,1768398655086,-1000.0,0.00024985,10]
[401899730,1768398655095,-1000.0,0.00024985,10]
[401899732,1768398655104,-715.0,0.00024985,10]
[401899734,1768398655114,-1041.66666667,0.00025,30]
[401899736,1768398655123,-2469.16,0.00025,7]
[401899738,1768398655132,-2000.0,0.00025066,7]
[401899739,1768398655141,-3247.20552054,0.00025068,7]
[401899741,1768398655150,-730.42,0.000251,7]
[401899743,1768398655160,-151.0,0.00025135,7]
[401899745,1768398655169,-442.59271,0.00025135,7]
[401899747,1768398655178,-442.59271,0.00025135,7]
[401899768,1768398655187,-442.59271,0.00025135,7]
[401899771,1768398655390,-442.59271,0.00025135,7]
[401899773,1768398655400,-151.0,0.00025135,7]
[401899774,1768398655409,-151.0,0.00025135,7]
[401899775,1768398655418,-191.99,0.00025135,7]
[401899776,1768398655427,-250.0,0.00025205,2]
[401899777,1768398655436,-1186.74681137,0.00025205,2]
[401899778,1768398655446,-1281.0,0.00025246,7]
[401899779,1768398655456,-1491.98548204,0.00025256,2]
[401899780,1768398655464,-1281.0,0.00025298,7]
[401899781,1768398655474,-39666.91,0.000253,2]
[401899782,1768398655483,-1089.56424793,0.00025367,21]
[401899783,1768398655493,-330.0,0.00025409,120]
[401899784,1768398655502,-1281.0,0.00025481,2]
[401899785,1768398655510,-2000.0,0.00025534,7]
[401899786,1768398655519,-1140.2,0.00025582,2]
[401899787,1768398655528,-1281.0,0.00025598,2]
[401899788,1768398655537,-167.77,0.000256,7]
[401899789,1768398655547,-1281.0,0.00025635,2]
[401899790,1768398655556,-1281.0,0.00025716,2]
[401899791,1768398655565,-350.0,0.00025753,2]
[401899792,1768398655574,-285.0,0.00025753,14]
[401899793,1768398655582,-4705.4347692,0.00025769,2]
[401899794,1768398655591,-1281.0,0.00025843,2]
[401899795,1768398655600,-160.0,0.00025898,3]
[401899796,1768398655610,-2469.16,0.000259,7]
[401899797,1768398655619,-1281.0,0.00025951,7]
[401899798,1768398655628,-1024.9030344,0.00026,2]
[401899799,1768398655638,-1281.0,0.00026024,2]
[401899800,1768398655647,-4297.49,0.00026027,2]
[401899801,1768398655656,-450.0,0.00026301,2]
[401899802,1768398655665,-1089.56424793,0.00026378,23]
[401899803,1768398655674,-305.62,0.000264,7]
[401899804,1768398655683,-303.2,0.000264,7]
[401899805,1768398655692,-5000.0,0.00026636,2]
[401899806,1768398655701,-11434.83681079,0.00026641,2]
[401899808,1768398655710,-330.0,0.00026679,120]
[401899809,1768398655719,-160.0,0.00026724,4]
[401899810,1768398655728,-1276.0,0.00026825,120]
[401899812,1768398655737,-550.0,0.00026849,2]
[401899813,1768398655746,-287.0,0.00026849,14]
[401899815,1768398655755,-2000.0,0.00026849,7]
[401899817,1768398655764,-39666.91,0.000269,2]
[401899819,1768398655773,-1140.2,0.00026964,2]
[401899821,1768398655782,-1020.0,0.00027,2]
[401899823,1768398655791,-800.0,0.00027177,2]
[401899825,1768398655801,-2469.16,0.000272,7]
[401899827,1768398655810,-1602.04998481,0.00027256,2]
[401899829,1768398655819,-2982.50706232,0.00027286,2]
[401899831,1768398655828,-800.0,0.00027293,2]
[401899833,1768398655837,-1089.56424793,0.00027389,24]
[401899835,1768398655846,-241.2824119,0.00027397,3]
[401899837,1768398655855,-150.1,0.00027397,3]
[401899839,1768398655865,-650.0,0.00027397,5]
[401899841,1768398655874,-557.979687,0.00027397,3]
[401899843,1768398655883,-557.979687,0.00027397,3]
[401899845,1768398655892,-557.979687,0.00027397,3]
[401899847,1768398655901,-557.979687,0.00027397,3]
[401899849,1768398655911,-557.979687,0.00027397,3]
[401899851,1768398655920,-557.979687,0.00027397,3]
[401899853,1768398655929,-557.979687,0.00027397,3]
[401899855,1768398655938,-557.979687,0.00027397,3]
[401899857,1768398655951,-300.0,0.00027397,2]
[401899859,1768398655960,-300.0,0.00027397,2]
[401899861,1768398655969,-300.0,0.00027397,2]
[401899863,1768398655978,-300.0,0.00027397,2]
[401899865,1768398655987,-300.0,0.00027397,2]
[401899867,1768398655996,-300.0,0.00027397,2]
[401899869,1768398656006,-300.0,0.00027397,2]
[401899871,1768398656015,-151.0,0.00027397,7]
[401899873,1768398656024,-151.0,0.00027397,7]
[401899875,1768398656033,-151.0,0.00027397,7]
[401899877,1768398656042,-500.0,0.00027397,5]
[401899879,1768398656052,-157.45506808,0.00027397,5]
[401899881,1768398656061,-500.0,0.00027397,15]
[401899883,1768398656070,-515.68473116,0.00027397,5]
[401899885,1768398656079,-1000.0,0.00027484,30]
[401899887,1768398656088,-1000.0,0.00027484,30]
[401899889,1768398656097,-1000.0,0.00027484,30]
[401899891,1768398656108,-167.77,0.000275,7]
[401899893,1768398656118,-5000.0,0.00027502,2]
[401899895,1768398656129,-2982.50706232,0.00027524,2]
[401899897,1768398656138,-160.0,0.00027549,5]
[401899899,1768398656148,-4297.49,0.00027671,4]
[401899901,1768398656157,-500.0,0.00027671,15]
[401899903,1768398656166,-2982.50706232,0.00027905,2]
[401899905,1768398656175,-170.0,0.00027945,27]
[401899907,1768398656185,-1000.0,0.00027945,5]
[401899909,1768398656194,-750.0,0.00027945,5]
[401899911,1768398656203,-500.0,0.00027945,15]
[401899913,1768398656213,-250.0,0.00027945,5]
[401899915,1768398656222,-250.0,0.00027945,5]
[401899917,1768398656231,-1000.0,0.00028,120]
[401899919,1768398656240,-1020.0,0.00028,2]
[401899921,1768398656249,-330.0,0.00028013,120]
[401899923,1768398656258,-2982.50706232,0.0002808,2]
[401899925,1768398656267,-2000.0,0.00028164,7]
[401899927,1768398656276,-1276.0,0.00028166,120]
[401899929,1768398656286,-500.0,0.00028219,15]
[401899931,1768398656295,-2469.16,0.000283,7]
[401899933,1768398656306,-1140.2,0.00028347,5]
[401899935,1768398656315,-2982.50706232,0.00028353,2]
[401899936,1768398656324,-5000.0,0.00028369,2]
[401899938,1768398656334,-160.0,0.00028374,6]
[401899940,1768398656343,-18825.21902073,0.00028398,2]
[401899942,1768398656353,-2179.02849585,0.000284,26]
[401899944,1768398656362,-305.62,0.000284,7]
[401899946,1768398656371,-303.2,0.000284,7]
[401899949,1768398656380,-800.0,0.00028493,2]
[401899951,1768398656389,-850.0,0.00028493,5]
[401899953,1768398656398,-500.0,0.00028493,15]
[401899955,1768398656407,-308.0,0.00028493,29]
[401899957,1768398656416,-1349.80836073,0.00028493,5]
[401899959,1768398656425,-350.0,0.00028493,5]
[401899961,1768398656434,-350.0,0.00028493,5]
[401899963,1768398656443,-39666.91,0.000285,2]
[401899964,1768398656454,-589.69745305,0.00028506,5]
[401899966,1768398656463,-11434.83681079,0.0002852,2]
[401899968,1768398656473,-157.32070626,0.00028566,5]
[401899970,1768398656482,-2982.50706232,0.00028613,2]
[401899972,1768398656491,-1367.0,0.0002867,2]
[401899974,1768398656501,-2147.0,0.0002867,2]
[401899976,1768398656510,-629.0,0.0002867,2]
[401899979,1768398656519,-430.0,0.0002867,2]
[401899980,1768398656528,-715.0,0.0002867,2]
[401899982,1768398656537,-500.0,0.00028767,15]
[401899985,1768398656547,-10000.0,0.0002887,7]
[401899987,1768398656558,-5000.0,0.000289,2]
[401899989,1768398656568,-2982.50706232,0.00028922,2]
[401899990,1768398656577,-2829.23463482,0.00028996,14]
[401899993,1768398656589,-1000.0,0.00029,120]
[401899995,1768398656598,-14605.0,0.00029,2]
[401899997,1768398656607,-1020.0,0.00029,2]
[401899999,1768398656616,-300.0,0.00029014,2]
[401900001,1768398656625,-300.0,0.00029014,2]
[401900003,1768398656633,-300.0,0.00029014,2]
[401900005,1768398656642,-300.0,0.00029014,2]
[401900007,1768398656652,-300.0,0.00029014,2]
[401900009,1768398656660,-300.0,0.00029014,2]
[401900011,1768398656669,-300.0,0.00029014,2]
[401900013,1768398656678,-300.0,0.00029014,2]
[401900015,1768398656688,-24568.88666405,0.0002902,2]
[401900017,1768398656697,-200.0,0.00029027,120]
[401900019,1768398656706,-200.0,0.00029027,120]
[401900021,1768398656716,-200.0,0.00029027,120]
[401900023,1768398656725,-5000.0,0.0002904,5]
[401900025,1768398656734,-1722.0,0.00029041,120]
[401900027,1768398656743,-500.0,0.00029041,60]
[401900029,1768398656752,-870.0,0.00029041,60]
[401900031,1768398656761,-500.0,0.00029041,60]
[401900033,1768398656770,-500.0,0.00029041,60]
[401900035,1768398656778,-500.0,0.00029041,60]
[401900037,1768398656787,-452.0,0.00029041,60]
[401900039,1768398656796,-500.0,0.00029041,60]
[401900041,1768398656806,-500.0,0.00029041,60]
[401900043,1768398656815,-500.0,0.00029041,60]
[401900045,1768398656824,-500.0,0.00029041,60]
[401900047,1768398656833,-240.44633049,0.00029041,60]
[401900049,1768398656841,-500.0,0.00029041,60]
[401900051,1768398656851,-500.0,0.00029041,2]
[401900053,1768398656860,-500.0,0.00029041,15]
[401900055,1768398656869,-300.0,0.00029041,2]
[401900057,1768398656878,-300.0,0.00029041,2]
[401900059,1768398656887,-300.0,0.00029041,2]
[401900061,1768398656896,-300.0,0.00029041,2]
[401900063,1768398656905,-300.0,0.00029041,2]
[401900065,1768398656916,-300.0,0.00029041,2]
[401900067,1768398656925,-300.0,0.00029041,2]
[401900069,1768398656933,-300.0,0.00029041,2]
[401900071,1768398656946,-300.0,0.00029041,2]
[401900073,1768398656955,-300.0,0.00029041,2]
[401900075,1768398656963,-300.0,0.00029041,2]
[401900077,1768398656972,-300.0,0.00029041,2]
[401900079,1768398656982,-300.0,0.00029041,2]
[401900081,1768398656991,-300.0,0.00029041,2]
[401900083,1768398657000,-1050.0,0.00029041,5]
[401900085,1768398657010,-281.07735056,0.00029041,5]
[401900087,1768398657020,-450.0,0.00029041,5]
[401900089,1768398657029,-300.0,0.00029068,2]
[401900091,1768398657038,-300.0,0.00029068,2]
[401900093,1768398657047,-300.0,0.00029068,2]